fUST/lending_fUST_20250602
["ID","MTS","AMOUNT","RATE_DAILY","PERIOD"]
[363709642,1748835038824,-1115.91411308,0.00020176,2]
[363709643,1748835038833,-500.0,0.00020183,2]
[363709644,1748835038843,-430.0,0.00020183,2]
[363709645,1748835038852,-257.90669175,0.00020183,2]
[363709646,1748835038863,-48.57330825,0.00020183,2]
[363709647,1748835038873,-430.0,0.00020183,2]
[363709648,1748835038884,-488.85,0.00020183,2]
[363709649,1748835038894,-430.0,0.00020183,2]
[363709650,1748835038904,-447.46,0.00020183,2]
[363709651,1748835038914,-755.0,0.00020183,2]
[363709652,1748835038923,-430.0,0.00020183,2]
[363709653,1748835038933,-430.0,0.00020183,2]
[363709654,1748835038943,-430.0,0.00020184,2]
[363709655,1748835038952,-451.44,0.00020184,2]
[363709656,1748835038963,-430.0,0.00020184,2]
[363709657,1748835038973,-430.0,0.00020184,2]
[363709658,1748835038982,-430.0,0.00020184,2]
[363709659,1748835038992,-672.74,0.00020184,2]
[363709660,1748835039002,-430.0,0.00020184,2]
[363709661,1748835039012,-229.131676,0.00020187,2]
[363709662,1748835039021,-500.0,0.00020233,2]
[363709663,1748835039031,-471.47148591,0.00020233,2]
[363709664,1748835039040,-166.0,0.00020274,2]
[363709665,1748835039050,-1115.91411308,0.00020314,3]
[363709666,1748835039060,-1115.91411308,0.00020452,3]
[363709667,1748835039070,-430.0,0.00020457,2]
[363709668,1748835039079,-430.0,0.00020457,2]
[363709669,1748835039089,-488.85,0.00020457,2]
[363709670,1748835039098,-430.0,0.00020457,2]
[363709671,1748835039108,-447.46,0.00020457,2]
[363709672,1748835039117,-755.0,0.00020457,2]
[363709673,1748835039127,-430.0,0.00020457,2]
[363709674,1748835039137,-430.0,0.00020457,2]
[363709675,1748835039147,-430.0,0.00020458,2]
[363709676,1748835039156,-451.44,0.00020458,2]
[363709677,1748835039166,-430.0,0.00020458,2]
[363709678,1748835039175,-430.0,0.00020458,2]
[363709679,1748835039184,-672.74,0.00020458,2]
[363709680,1748835039195,-430.0,0.00020458,2]
[363709681,1748835039204,-160.81771939,0.00020547,2]
[363709682,1748835039214,-500.163709,0.00020568,2]
[363709683,1748835039224,-1115.91411308,0.0002059,3]
[363709684,1748835039234,-1000.0,0.00020621,2]
[363709685,1748835039244,-1115.91411308,0.00020728,3]
[363709686,1748835039254,-430.0,0.00020731,2]
[363709687,1748835039263,-430.0,0.00020731,2]
[363709688,1748835039273,-488.85,0.00020731,2]
[363709689,1748835039283,-430.0,0.00020731,2]
[363709690,1748835039293,-447.46,0.00020731,2]
[363709691,1748835039303,-755.0,0.00020731,2]
[363709692,1748835039313,-430.0,0.00020731,2]
[363709693,1748835039323,-430.0,0.00020731,2]
[363709694,1748835039333,-430.0,0.00020732,2]
[363709695,1748835039343,-451.44,0.00020732,2]
[363709696,1748835039353,-430.0,0.00020732,2]
[363709698,1748835039363,-430.0,0.00020732,2]
[363709699,1748835039372,-672.74,0.00020732,2]
[363709700,1748835039382,-430.0,0.00020732,2]
[363709701,1748835039391,-500.0,0.00020772,2]
[363709702,1748835039402,-1000.0,0.00020781,2]
[363709703,1748835039412,-760.22,0.000208,2]
[363709704,1748835039421,-420.0,0.00020802,2]
[363709706,1748835039430,-1115.91411308,0.00020866,4]
[363709707,1748835039439,-1325.8631852,0.00020917,2]
[363709708,1748835039449,-1421.43,0.00020938,2]
[363709709,1748835039459,-268.00654762,0.00021,2]
[363709710,1748835039468,-161.47851057,0.00021,7]
[363709711,1748835039478,-200.46136976,0.00021,2]
[363709713,1748835039488,-1115.91411308,0.00021003,4]
[363709715,1748835039498,-430.0,0.00021005,2]
[363709716,1748835039508,-430.0,0.00021005,2]
[363709717,1748835039517,-488.85,0.00021005,2]
[363709718,1748835039527,-430.0,0.00021005,2]
[363709720,1748835039537,-447.46,0.00021005,2]
[363709723,1748835039547,-755.0,0.00021005,2]
[363709724,1748835039557,-430.0,0.00021005,2]
[363709726,1748835039566,-430.0,0.00021005,2]
[363709734,1748835039696,-430.0,0.00021006,2]
[363709736,1748835039708,-451.44,0.00021006,2]
[363709738,1748835039719,-430.0,0.00021006,2]
[363709740,1748835039728,-430.0,0.00021006,2]
[363709742,1748835039738,-672.74,0.00021006,2]
[363709744,1748835039748,-358.46390782,0.00021006,2]
[363709746,1748835039758,-1115.91411308,0.00021141,4]
[363709748,1748835039767,-1000.0,0.00021169,2]
[363709750,1748835039777,-809.06,0.00021214,2]
[363709752,1748835039786,-1300.0,0.00021225,2]
[363709754,1748835039796,-500.0,0.00021279,2]
[363709756,1748835039806,-430.0,0.00021279,2]
[363709758,1748835039815,-430.0,0.00021279,2]
[363709760,1748835039825,-488.85,0.00021279,2]
[363709762,1748835039835,-430.0,0.00021279,2]
[363709764,1748835039844,-447.46,0.00021279,2]
[363709766,1748835039854,-755.0,0.00021279,2]
[363709768,1748835039863,-430.0,0.00021279,2]
[363709770,1748835039873,-430.0,0.00021279,2]
[363709772,1748835039884,-1115.91411308,0.00021279,5]
[363709775,1748835039896,-430.0,0.0002128,2]
[363709777,1748835039906,-451.44,0.0002128,2]
[363709778,1748835039915,-430.0,0.0002128,2]
[363709780,1748835039926,-488.86,0.0002128,2]
[363709782,1748835039935,-672.74,0.0002128,2]
[363709784,1748835039944,-1000.0,0.00021329,2]
[363709786,1748835039954,-1115.91411308,0.00021417,5]
[363709789,1748835039965,-430.0,0.00021553,2]
[363709791,1748835039975,-430.0,0.00021553,2]
[363709793,1748835039984,-488.85,0.00021553,2]
[363709795,1748835039993,-430.0,0.00021553,2]
[363709797,1748835040003,-447.46,0.00021553,2]
[363709799,1748835040013,-755.0,0.00021553,2]
[363709801,1748835040023,-562.17256473,0.00021553,2]
[363709803,1748835040032,-430.0,0.00021553,2]
[363709805,1748835040041,-430.0,0.00021554,2]
[363709807,1748835040051,-451.44,0.00021554,2]
[363709810,1748835040061,-430.0,0.00021554,2]
[363709813,1748835040071,-672.74,0.00021554,2]
[363709816,1748835040081,-1115.91411308,0.00021555,5]
[363709819,1748835040090,-151.53913761,0.00021574,2]
[363709822,1748835040100,-2600.61889612,0.00021662,2]
[363709825,1748835040110,-1115.91411308,0.00021693,5]
[363709828,1748835040120,-217844.55815447,0.000217,2]
[363709831,1748835040129,-2133.34,0.000217,2]
[363709834,1748835040139,-4499.72,0.000217,2]
[363709837,1748835040148,-809.06,0.00021762,3]
[363709839,1748835040158,-430.0,0.00021827,2]
[363709841,1748835040167,-430.0,0.00021827,2]
[363709843,1748835040177,-488.85,0.00021827,2]
[363709845,1748835040186,-430.0,0.00021827,2]
[363709848,1748835040197,-447.46,0.00021827,2]
[363709850,1748835040206,-755.0,0.00021827,2]
[363709852,1748835040215,-430.0,0.00021827,2]
[363709854,1748835040225,-430.0,0.00021828,2]
[363709856,1748835040234,-451.44,0.00021828,2]
[363709858,1748835040243,-488.56217315,0.00021828,2]
[363709860,1748835040254,-672.74,0.00021828,2]
[363709862,1748835040264,-1115.91411308,0.00021831,6]
[363709864,1748835040278,-1895.24,0.00021848,2]
[363709866,1748835040288,-5000.0,0.00021874,2]
[363709868,1748835040297,-760.22,0.000219,2]
[363709870,1748835040308,-500.0,0.00021916,2]
[363709872,1748835040317,-7867.87141907,0.00021917,2]
[363709874,1748835040326,-505.09070126,0.00021917,2]
[363709876,1748835040335,-500.0,0.00021917,2]
[363709878,1748835040344,-500.0,0.00021917,2]
[363709880,1748835040354,-500.0,0.00021917,2]
[363709882,1748835040363,-500.0,0.00021917,2]
[363709884,1748835040372,-500.0,0.00021917,2]
[363709886,1748835040382,-500.0,0.00021917,2]
[363709888,1748835040391,-500.0,0.00021917,2]
[363709890,1748835040400,-500.0,0.00021917,2]
[363709892,1748835040409,-241.79345888,0.00021917,2]
[363709894,1748835040419,-500.0,0.00021917,2]
[363709896,1748835040428,-500.0,0.00021917,2]
[363709898,1748835040437,-500.0,0.00021917,2]
[363709900,1748835040446,-500.0,0.00021917,2]
[363709902,1748835040455,-500.0,0.00021917,2]
[363709904,1748835040464,-500.0,0.00021917,2]
[363709906,1748835040474,-500.0,0.00021917,2]
[363709908,1748835040483,-327.55331113,0.00021917,2]
[363709910,1748835040492,-150.0,0.00021918,2]
[363709912,1748835040501,-635.05710346,0.00021918,2]
[363709914,1748835040511,-1115.91411308,0.00021969,6]
[363709916,1748835040520,-327.34,0.0002199,3]
[363709918,1748835040529,-300.0,0.00021998,2]
[363709920,1748835040540,-500.0,0.00021998,2]
[363709922,1748835040548,-617.38594402,0.00021998,2]
[363709924,1748835040558,-617.38594402,0.00021998,2]
[363709926,1748835040568,-617.38594402,0.00021998,2]
[363709928,1748835040578,-617.38594402,0.00021998,2]
[363709930,1748835040588,-617.38594402,0.00021998,2]
[363709932,1748835040597,-500.0,0.00021998,2]
[363709934,1748835040607,-617.38594402,0.00021998,2]
[363709936,1748835040616,-617.38594402,0.00021998,2]
[363709937,1748835040627,-617.38594402,0.00021998,2]
[363709939,1748835040636,-591.98096313,0.00021998,2]
[363709941,1748835040646,-617.38594402,0.00021998,2]
[363709943,1748835040655,-617.38594402,0.00021998,2]
[363709945,1748835040665,-617.38594402,0.00021998,2]
[363709947,1748835040674,-617.38594402,0.00021998,2]
[363709949,1748835040684,-617.38594402,0.00021998,2]
[363709951,1748835040693,-617.38594402,0.00021998,2]
[363709952,1748835040702,-617.38594402,0.00021998,2]
[363709954,1748835040711,-617.38594402,0.00021998,2]
[363709956,1748835040720,-617.38594402,0.00021998,2]
[363709958,1748835040729,-617.38594402,0.00021998,2]
[363709959,1748835040738,-617.38594402,0.00021998,2]
[363709961,1748835040748,-617.38594402,0.00021998,2]
[363709963,1748835040757,-779916.84293748,0.00021999,2]
[363709966,1748835040774,-12089.20742872,0.00021999,2]
[363709968,1748835040784,-361.05299559,0.00021999,2]
[363709970,1748835040797,-713.25606379,0.00021999,2]
[363709973,1748835040812,-159.38089526,0.00019262,2]
[363709975,1748835040821,-140.61910474,0.00021999,2]
[363709977,1748835040833,-2323.08761367,0.00021999,2]
[363709979,1748835040844,-1124.5076448,0.00021999,2]
[363709981,1748835040856,-1956.0610393,0.00021999,2]
[363709984,1748835040868,-377.0600867,0.00021999,2]
[363709986,1748835040879,-847.50656881,0.00021999,2]
[363709988,1748835040894,-634.0,0.00021999,2]
[363710000,1748835042919,-30500.100979,0.00021999,2]
[363710013,1748835046080,-159.38089525,0.00021567,2]
[363710014,1748835046090,-1222.59124692,0.00021998,2]
[363710015,1748835046099,-652.83758666,0.00021998,2]
[363710016,1748835046187,-569.75366026,0.00021998,2]
[363710017,1748835046197,-500.0,0.00021998,2]
[363710018,1748835046207,-500.0,0.00021998,2]
[363710019,1748835046218,-1222.59124692,0.00021998,2]
[363710020,1748835046227,-500.0,0.00021998,2]
[363710021,1748835046237,-500.0,0.00021998,2]
[363710023,1748835046247,-278.56865838,0.00021998,2]
[363710025,1748835046257,-1222.59124692,0.00021998,2]
[363710027,1748835046267,-1222.59124692,0.00021998,2]
[363710029,1748835046276,-500.0,0.00021998,2]
[363710030,1748835046286,-1222.59124692,0.00021998,2]
[363710031,1748835046296,-1222.59124692,0.00021998,2]
[363710032,1748835046306,-500.0,0.00021998,2]
[363710033,1748835046316,-1222.59124692,0.00021998,2]
[363710035,1748835046325,-421.65762047,0.00021998,2]
[363710036,1748835046337,-78.34237953,0.00021998,2]
[363710037,1748835046347,-500.0,0.00021998,2]
[363710038,1748835046360,-1222.59124692,0.00021998,2]
[363710039,1748835046369,-1222.59124692,0.00021998,2]
[363710040,1748835046379,-18367.77716178,0.00021999,2]
[363710041,1748835046391,-3439.63881522,0.00021999,2]
[363710042,1748835046403,-500.0,0.00021999,2]
[363710043,1748835046415,-709.82680776,0.00021999,2]
[363710044,1748835046426,-909.64364974,0.00021999,2]
[363710045,1748835164430,6000.010001,0.00022,120]
[363710048,1748835819485,10000.0,0.0001552,2]
[363710049,1748835828707,232.292163,0.00013699,2]
[363710053,1748835843784,10000.0,0.0001552,2]
[363710054,1748835845836,640.0,0.00021918,60]
[363710055,1748835854087,10000.0,0.0001552,2]
[363710056,1748835869945,9442.0,0.0001552,2]
[363710072,1748836232120,-5000.0,0.00016519,2]
[363710073,1748836232129,-176.21759374,0.00017025,2]
[363710074,1748836232139,-293.69598956,0.00017729,2]
[363710075,1748836232149,-777.51511868,0.000179,2]
[363710076,1748836232158,-530.90196755,0.00018107,2]
[363710098,1748836238117,-246.6131509,0.00018107,2]
[363710099,1748836238127,-777.51511845,0.00018314,2]
[363710100,1748836238136,-150.82455173,0.00018462,2]
[363710101,1748836238170,-454.18739127,0.00018462,2]
[363710102,1748836238180,-195.449108,0.00018502,2]
[363710103,1748836238189,-477.71743,0.00018514,2]
[363710104,1748836238199,-777.51511845,0.00018521,2]
[363710105,1748836238209,-300.0,0.00018703,2]
[363710106,1748836238219,-422.12,0.00018708,2]
[363710107,1748836238229,-777.51511845,0.00018728,2]
[363710108,1748836238238,-225.629121,0.0001878,2]
[363710109,1748836238248,-1614.04701818,0.000189,2]
[363710111,1748836238258,-777.51511845,0.00018934,2]
[363710112,1748836238268,-1200.0,0.00019033,2]
[363710113,1748836238277,-238.8587156,0.00019046,2]
[363710114,1748836238287,-300.0,0.00019085,2]
[363710115,1748836238296,-6186.09752363,0.00019086,2]
[363710116,1748836238305,-777.51511845,0.00019141,2]
[363710117,1748836238315,-184.137689,0.00019178,2]
[363710118,1748836238325,-777.51511845,0.00019348,2]
[363710119,1748836238335,-165.02306995,0.00019489,2]
[363710120,1748836238345,-777.51511845,0.00019555,2]
[363710121,1748836238355,-430.0,0.00019588,2]
[363710122,1748836238364,-536.0,0.00019588,2]
[363710123,1748836238374,-563.66,0.00019588,2]
[363710124,1748836238383,-430.0,0.00019588,2]
[363710125,1748836238394,-430.0,0.00019588,2]
[363710126,1748836238403,-430.0,0.00019588,2]
[363710127,1748836238412,-430.0,0.00019588,2]
[363710128,1748836238422,-447.42,0.00019588,2]
[363710129,1748836238432,-430.0,0.00019588,2]
[363710130,1748836238442,-430.0,0.00019589,2]
[363710131,1748836238451,-500.0,0.00019589,2]
[363710132,1748836238460,-466.33,0.00019589,2]
[363710133,1748836238470,-430.0,0.00019589,2]
[363710134,1748836238481,-430.0,0.00019589,2]
[363710135,1748836238492,-430.0,0.00019589,2]
[363710136,1748836238501,-690.16,0.00019589,2]
[363710137,1748836238511,-215.75599337,0.00019589,2]
[363710138,1748836238521,-430.0,0.00019589,2]
[363710139,1748836238531,-844.25,0.00019599,2]
[363710140,1748836238541,-777.51511845,0.00019762,2]
[363710141,1748836238551,-430.0,0.00019862,2]
[363710142,1748836238560,-536.0,0.00019862,2]
[363710143,1748836238570,-563.66,0.00019862,2]
[363710144,1748836238580,-403.08515721,0.00019862,2]
[363710145,1748836238590,-430.0,0.00019862,2]
[363710146,1748836238599,-430.0,0.00019862,2]
[363710147,1748836238609,-430.0,0.00019862,2]
[363710148,1748836238620,-447.42,0.00019862,2]
[363710149,1748836238630,-430.0,0.00019862,2]
[363710150,1748836238640,-466.33,0.00019863,2]
[363710151,1748836238650,-186.63955509,0.00019863,2]
[363710152,1748836238660,-430.0,0.00019863,2]
[363710153,1748836238671,-430.0,0.00019863,2]
[363710154,1748836238681,-690.16,0.00019863,2]
[363710155,1748836238691,-279.715,0.00019909,2]
[363710156,1748836238701,-430.0,0.00019963,2]
[363710157,1748836238710,-500.0,0.00019963,2]
[363710158,1748836238720,-777.51511845,0.00019969,2]
[363710159,1748836238730,-221.43926187,0.0002,2]
[363710160,1748836238739,-500.0,0.00020081,2]
[363710161,1748836238749,-307.65812999,0.00020081,2]
[363710162,1748836238759,-160.0,0.00020082,2]
[363710163,1748836238769,-229.39799938,0.00020082,2]
[363710164,1748836238779,-160.0,0.00020082,2]
[363710165,1748836238789,-12668.79298183,0.00020082,2]
[363710166,1748836238799,-423.56953423,0.00020082,2]
[363710167,1748836238810,-160.0,0.00020082,2]
[363710168,1748836238819,-212.83419937,0.00020082,2]
[363710169,1748836238830,-160.0,0.00020082,2]
[363710170,1748836238839,-842.5625,0.00020082,2]
[363710171,1748836238849,-1200.0,0.00020129,2]
[363710172,1748836238858,-430.0,0.00020136,2]
[363710173,1748836238868,-536.0,0.00020136,2]
[363710174,1748836238878,-563.66,0.00020136,2]
[363710175,1748836238888,-430.0,0.00020136,2]
[363710176,1748836238897,-430.0,0.00020136,2]
[363710177,1748836238908,-430.0,0.00020136,2]
[363710178,1748836238918,-447.42,0.00020136,2]
[363710179,1748836238928,-466.33,0.00020137,2]
[363710180,1748836238937,-430.0,0.00020137,2]
[363710181,1748836238947,-430.0,0.00020137,2]
[363710182,1748836238956,-690.16,0.00020137,2]
[363710183,1748836238966,-777.51511845,0.00020176,2]
[363710184,1748836238976,-232.292163,0.00020187,2]
[363710185,1748836238986,-430.0,0.00020236,2]
[363710186,1748836238996,-500.0,0.00020314,3]
[363710187,1748836239006,-500.0,0.00020341,3]
[363710188,1748836239016,-500.0,0.00020369,3]
[363710189,1748836239026,-777.51511845,0.00020383,3]
[363710190,1748836239036,-420.0,0.00020392,2]
[363710191,1748836239046,-500.0,0.00020396,3]
[363710192,1748836239056,-237.29,0.0002041,2]
[363710193,1748836239066,-536.0,0.0002041,2]
[363710194,1748836239075,-563.66,0.0002041,2]
[363710195,1748836239085,-430.0,0.0002041,2]
[363710196,1748836239094,-430.0,0.0002041,2]
[363710197,1748836239104,-430.0,0.0002041,2]
[363710198,1748836239113,-447.42,0.0002041,2]
[363710199,1748836239123,-466.33,0.00020411,2]
[363710200,1748836239133,-553.43196572,0.00020411,2]
[363710201,1748836239143,-430.0,0.00020411,2]
[363710202,1748836239153,-690.16,0.00020411,2]
[363710203,1748836239162,-427.63211096,0.00020417,2]
[363710204,1748836239172,-500.0,0.00020424,3]
[363710205,1748836239182,-500.0,0.00020451,3]
[363710206,1748836239192,-500.0,0.00020455,2]
[363710207,1748836239201,-500.0,0.00020478,3]
[363710208,1748836239211,-1266.37,0.0002049,2]
[363710209,1748836239221,-346.0,0.00020506,3]
[363710210,1748836239231,-430.0,0.0002051,2]
[363710211,1748836239241,-777.51511845,0.0002059,3]
[363710212,1748836239251,-536.0,0.00020684,2]
[363710213,1748836239260,-563.66,0.00020684,2]
[363710214,1748836239270,-430.0,0.00020684,2]
[363710215,1748836239280,-430.0,0.00020684,2]
[363710216,1748836239290,-430.0,0.00020684,2]
[363710217,1748836239300,-447.42,0.00020684,2]
[363710218,1748836239309,-466.33,0.00020685,2]
[363710219,1748836239320,-430.0,0.00020685,2]
[363710220,1748836239330,-690.16,0.00020685,2]
[363710221,1748836239340,-430.0,0.00020784,2]
[363710222,1748836239350,-777.51511845,0.00020797,4]
[363710223,1748836239359,-601.00654139,0.00020956,2]
[363710224,1748836239369,-536.0,0.00020958,2]
[363710225,1748836239378,-563.66,0.00020958,2]
[363710226,1748836239388,-430.0,0.00020958,2]
[363710227,1748836239398,-430.0,0.00020958,2]
[363710228,1748836239408,-430.0,0.00020958,2]
[363710229,1748836239418,-447.42,0.00020958,2]
[363710230,1748836239427,-466.33,0.00020959,2]
[363710231,1748836239437,-430.0,0.00020959,2]
[363710232,1748836239446,-690.16,0.00020959,2]
[363710233,1748836239456,-800.0,0.00020987,2]
[363710234,1748836239466,-777.51511845,0.00021003,4]
[363710235,1748836239475,-817.84,0.00021005,2]
[363710236,1748836239488,-430.0,0.00021058,2]
[363710237,1748836239498,-364.4406513,0.00021096,2]
[363710238,1748836239508,-500.0,0.00021141,2]
[363710239,1748836239517,-601.00654139,0.00021189,2]
[363710241,1748836239527,-777.51511845,0.0002121,4]
[363710243,1748836239537,-1200.0,0.00021225,2]
[363710244,1748836239546,-536.0,0.00021232,2]
[363710245,1748836239555,-563.66,0.00021232,2]
[363710246,1748836239565,-430.0,0.00021232,2]
[363710247,1748836239574,-430.0,0.00021232,2]
[363710248,1748836239584,-513.05606974,0.00021232,2]
[363710249,1748836239593,-447.42,0.00021232,2]
[363710250,1748836239602,-466.33,0.00021233,2]
[363710251,1748836239612,-430.0,0.00021233,2]
[363710252,1748836239621,-690.16,0.00021233,2]
[363710255,1748836239760,-193.0720684,0.00021332,2]
[363710256,1748836239779,-1688.49,0.00021381,2]
[363710257,1748836239794,-777.51511845,0.00021417,5]
[363710258,1748836239805,-601.00654139,0.00021496,2]
[363710259,1748836239815,-536.0,0.00021506,2]
[363710260,1748836239827,-563.66,0.00021506,2]
[363710261,1748836239837,-430.0,0.00021506,2]
[363710264,1748836239848,-430.0,0.00021506,2]
[363710266,1748836239858,-447.42,0.00021506,2]
[363710268,1748836239868,-466.33,0.00021507,2]
[363710270,1748836239879,-302.5137139,0.00021507,2]
[363710272,1748836239889,-690.16,0.00021507,2]
[363710274,1748836239899,-817.84,0.00021553,3]
[363710276,1748836239911,-777.51511845,0.00021624,5]
[363710278,1748836239926,-167.56104164,0.00021635,2]
[363710280,1748836239936,-500.0,0.00021656,2]
[363710281,1748836239947,-441.93286393,0.0002175,2]
[363710282,1748836239957,-536.0,0.0002178,2]
[363710283,1748836239967,-563.66,0.0002178,2]
[363710284,1748836239977,-430.0,0.0002178,2]
[363710285,1748836239988,-430.0,0.0002178,2]
[363710287,1748836239998,-447.42,0.0002178,2]
[363710289,1748836240008,-466.33,0.00021781,2]
[363710291,1748836240018,-690.16,0.00021781,2]
[363710293,1748836240028,-3236.60335335,0.00021816,2]
[363710295,1748836240038,-777.51511845,0.00021831,6]
[363710297,1748836240048,-500.0,0.00021873,2]
[363710299,1748836240058,-5000.0,0.00021874,2]
[363710301,1748836240068,-601.0065414,0.00021876,2]
[363710303,1748836240077,-12500.0,0.00021883,2]
[363710305,1748836240087,-12500.0,0.00021891,2]
[363710307,1748836240098,-12500.0,0.00021892,2]
[363710309,1748836240108,-500.0,0.00021899,2]
[363710311,1748836240118,-12500.0,0.00021899,2]
[363710313,1748836240128,-12500.0,0.000219,2]
[363710316,1748836240138,-327.34,0.00021907,3]
[363710318,1748836240148,-500.0,0.00021907,2]
[363710320,1748836240158,-12500.0,0.00021908,2]
[363710322,1748836240167,-12500.0,0.00021909,2]
[363710324,1748836240178,-500.0,0.00021916,2]
[363710326,1748836240188,-200.0,0.00021917,2]
[363710328,1748836240197,-12500.0,0.00021917,2]
[363710330,1748836240207,-500.0,0.00021917,2]
[363710332,1748836240217,-500.0,0.00021917,2]
[363710334,1748836240226,-500.0,0.00021917,2]
[363710336,1748836240236,-500.0,0.00021917,2]
[363710338,1748836240245,-500.0,0.00021917,2]
[363710340,1748836240255,-500.0,0.00021917,2]
[363710342,1748836240264,-500.0,0.00021917,2]
[363710344,1748836240275,-500.0,0.00021917,2]
[363710346,1748836240284,-363.35405344,0.00021917,2]
[363710348,1748836240294,-538.96,0.00021917,2]
[363710350,1748836240305,-538.96,0.00021917,2]
[363710352,1748836240315,-538.96,0.00021917,2]
[363710354,1748836240326,-538.96,0.00021917,2]
[363710356,1748836240335,-538.96,0.00021917,2]
[363710358,1748836240345,-538.96,0.00021917,2]
[363710360,1748836240354,-538.96,0.00021917,2]
[363710362,1748836240364,-538.96,0.00021917,2]
[363710364,1748836240374,-500.0,0.00021917,2]
[363710367,1748836240392,-500.0,0.00021917,2]
[363710369,1748836240402,-500.0,0.00021917,2]
[363710371,1748836240411,-500.0,0.00021917,2]
[363710373,1748836240422,-500.0,0.00021917,2]
[363710375,1748836240432,-500.0,0.00021917,2]
[363710377,1748836240441,-500.0,0.00021917,2]
[363710379,1748836240451,-500.0,0.00021917,2]
[363710381,1748836240461,-327.55331113,0.00021917,2]
[363710383,1748836240471,-500.0,0.00021917,2]
[363710385,1748836240481,-323.0767398,0.00021918,7]
[363710387,1748836240495,-150.0,0.00021918,2]
[363710389,1748836240504,-12500.0,0.00021918,2]
[363710391,1748836240513,-635.05710346,0.00021918,2]
[363710393,1748836240524,-300.88084493,0.00021998,2]
[363710394,1748836240534,-586163.18056123,0.00021999,2]
[363710411,1748836240675,-781.08,0.00021496,10]
[363710413,1748836240686,-8112.92177804,0.00021918,2]
[363710415,1748836240695,-54390.99558042,0.00021999,2]
[363710417,1748836240707,-54570.8218953,0.00021999,2]
[363710419,1748836240719,-791.3487167,0.00021999,2]
[363710422,1748836240731,-430.0,0.00021999,2]
[363710472,1748836243086,-17503.76115913,0.00021999,2]
[363710473,1748836243139,-391.34716415,0.00021999,2]
[363710474,1748836243151,-9654.41750406,0.00021999,2]
[363710475,1748836243163,-1591.80000001,0.00021999,2]
[363710493,1748836246323,-5000.0,0.00021779,2]
[363710494,1748836246333,-3608.49521416,0.00021999,2]
[363710495,1748836246344,-635004.0524905,0.00021999,2]
[363710496,1748836246376,-34784.14772518,0.00021999,2]
[363710722,1748836763228,-158.7627202,0.00017303,2]
[363710723,1748836763252,-5000.0,0.00017838,2]
[363710724,1748836763274,-396.90680052,0.00018018,2]
[363710725,1748836763296,-198.45340026,0.00018512,2]
[363710726,1748836763324,-306.62715275,0.000189,2]
[363710727,1748836763347,-167.84415729,0.00018985,2]
[363710728,1748836763369,-1100.0,0.00019033,2]
[363710729,1748836763397,-306.62715265,0.00019072,2]
[363710730,1748836763419,-300.0,0.00019083,2]
[363710731,1748836763440,-225.8679098,0.00019084,2]
[363710732,1748836763463,-457.99700402,0.00019084,2]
[363710733,1748836763484,-430.0,0.00019084,2]
[363710734,1748836763505,-437.99790643,0.00019084,2]
[363710735,1748836763528,-430.0,0.00019084,2]
[363710736,1748836763551,-423.51459779,0.00019084,2]
[363710737,1748836763575,-572.33,0.00019084,2]
[363710738,1748836763596,-340.96525395,0.00019084,2]
[363710739,1748836763619,-368.18,0.00019084,2]
[363710740,1748836763645,-430.0,0.00019084,2]
[363710741,1748836763668,-430.0,0.00019084,2]